[Event "Titled Tuesday Blitz November 30 2021"]
[White "Durarbayli, Vasif"]
[Black "Samunenkov, Ihor"]
[WhiteFideId "13402935"]
[BlackFideId "14187086"]
[WhiteElo "2522"]
[BlackElo "2348"]
[Result "1-0"]
[Round "09"]
[TimeControl "180+1"]
[Date "2021.11.30"]
[WhiteClock "0:00:15"]
[BlackClock "0:00:03"]

1. e4 {[%clk 0:03:00]}  c6 {[%clk 0:03:00]} 2. d4 {[%clk 0:03:00]}  d5 {[%clk 0:03:00]} 3. exd5 {[%clk 0:03:01]}  cxd5 {[%clk 0:03:01]} 4. c4 {[%clk 0:03:02]}  Nf6 {[%clk 0:03:01]} 5. Nc3 {[%clk 0:03:02]}  Nc6 {[%clk 0:03:01]} 6. Nf3 {[%clk 0:03:02]}  Bg4 {[%clk 0:03:01]} 7. cxd5 {[%clk 0:03:02]}  Nxd5 {[%clk 0:03:01]} 8. Qb3 {[%clk 0:03:02]}  Bxf3 {[%clk 0:03:02]} 9. gxf3 {[%clk 0:03:02]}  e6 {[%clk 0:03:03]} 10. Qxb7 {[%clk 0:03:02]}  Nxd4 {[%clk 0:03:03]} 11. Bb5+ {[%clk 0:03:02]}  Nxb5 {[%clk 0:03:04]} 12. Qc6+ {[%clk 0:03:01]}  Ke7 {[%clk 0:03:04]} 13. Qc5+ {[%clk 0:03:01]}  Nd6 {[%clk 0:03:03]} 14. Nxd5+ {[%clk 0:02:58]}  exd5 {[%clk 0:03:04]} 15. O-O {[%clk 0:02:58]}  Qb6 {[%clk 0:02:38]} 16. Qxd5 {[%clk 0:02:57]}  Qb7 {[%clk 0:02:34]} 17. Qe5+ {[%clk 0:02:52]}  Kd7 {[%clk 0:02:33]} 18. Rd1 {[%clk 0:02:52]}  Re8 {[%clk 0:02:24]} 19. Qf5+ {[%clk 0:02:52]}  Re6 {[%clk 0:02:25]} 20. Qxf7+ {[%clk 0:02:43]}  Be7 {[%clk 0:02:25]} 21. Bg5 {[%clk 0:02:34]}  Re8 {[%clk 0:01:46]} 22. Rxd6+ {[%clk 0:02:11]}  Rxd6 {[%clk 0:01:37]} 23. Re1 {[%clk 0:02:11]}  Qd5 {[%clk 0:01:21]} 24. Rxe7+ {[%clk 0:02:04]}  Rxe7 {[%clk 0:01:21]} 25. Qxe7+ {[%clk 0:02:05]}  Kc6 {[%clk 0:01:15]} 26. Bf4 {[%clk 0:02:03]}  Rd7 {[%clk 0:01:06]} 27. Qa3 {[%clk 0:02:02]}  Kb7 {[%clk 0:01:01]} 28. Kg2 {[%clk 0:01:57]}  Rf7 {[%clk 0:00:51]} 29. Bg3 {[%clk 0:01:52]}  g5 {[%clk 0:00:51]} 30. Qb4+ {[%clk 0:01:43]}  Kc6 {[%clk 0:00:47]} 31. Qa4+ {[%clk 0:01:41]}  Kb7 {[%clk 0:00:36]} 32. Qb4+ {[%clk 0:01:40]}  Kc6 {[%clk 0:00:36]} 33. Qc3+ {[%clk 0:01:40]}  Kb7 {[%clk 0:00:31]} 34. a4 {[%clk 0:01:33]}  h5 {[%clk 0:00:28]} 35. h3 {[%clk 0:01:31]}  a6 {[%clk 0:00:24]} 36. Qb4+ {[%clk 0:01:26]}  Kc6 {[%clk 0:00:24]} 37. Qc3+ {[%clk 0:01:24]}  Kb7 {[%clk 0:00:22]} 38. a5 {[%clk 0:01:24]}  Qb5 {[%clk 0:00:11]} 39. Qh8 {[%clk 0:01:07]}  Ka7 {[%clk 0:00:05]} 40. Qxh5 {[%clk 0:00:58]}  Qd5 {[%clk 0:00:04]} 41. b4 {[%clk 0:00:52]}  Kb7 {[%clk 0:00:04]} 42. Qg4 {[%clk 0:00:49]}  Rf5 {[%clk 0:00:04]} 43. Qh5 {[%clk 0:00:42]}  Rf7 {[%clk 0:00:03]} 44. Qh8 {[%clk 0:00:40]}  Qxf3+ {[%clk 0:00:02]} 45. Kh2 {[%clk 0:00:41]}  Kc6 {[%clk 0:00:02]} 46. Qb8 {[%clk 0:00:37]}  Kd5 {[%clk 0:00:02]} 47. Qd6+ {[%clk 0:00:24]}  Kc4 {[%clk 0:00:02]} 48. Qxa6+ {[%clk 0:00:25]}  Kxb4 {[%clk 0:00:02]} 49. Qb6+ {[%clk 0:00:25]}  Kc3 {[%clk 0:00:01]} 50. a6 {[%clk 0:00:25]}  g4 {[%clk 0:00:02]} 51. Qc5+ {[%clk 0:00:18]}  Kd2 {[%clk 0:00:02]} 52. Qd4+ {[%clk 0:00:15]}  Ke1 {[%clk 0:00:02]} 53. Qb4+ {[%clk 0:00:11]}  Kf1 {[%clk 0:00:01]} 54. Qb1+ {[%clk 0:00:11]}  Ke2 {[%clk 0:00:01]} 55. Qa2+ {[%clk 0:00:12]}  Ke1 {[%clk 0:00:02]} 56. Qa1+ {[%clk 0:00:12]}  Ke2 {[%clk 0:00:03]} 57. h4 {[%clk 0:00:12]}  Qa8 {[%clk 0:00:01]} 58. Qa2+ {[%clk 0:00:12]}  Ke1 {[%clk 0:00:01]} 59. Qa1+ {[%clk 0:00:13]}  Ke2 {[%clk 0:00:02]} 60. Qa2+ {[%clk 0:00:13]}  Kd1 {[%clk 0:00:02]} 61. Qxf7 {[%clk 0:00:13]}  Qxa6 {[%clk 0:00:02]} 62. Qd5+ {[%clk 0:00:12]}  Ke2 {[%clk 0:00:02]} 63. Qe4+ {[%clk 0:00:13]}  Kf1 {[%clk 0:00:03]} 64. Qxg4 {[%clk 0:00:13]}  Qc6 {[%clk 0:00:02]} 65. Qh3+ {[%clk 0:00:14]}  Ke2 {[%clk 0:00:03]} 66. h5 {[%clk 0:00:15]} 1-0


[Site "https://www.chess.com"]

[Event "Titled Tuesday Blitz November 30 2021"]
[White "Erzhanov, Arman"]
[Black "Nikologorskiy, Konstantin"]
[WhiteFideId "4138821"]
[BlackFideId "24111708"]
[WhiteElo "2175"]
[BlackElo "2346"]
[Result "0-1"]
[Round "09"]
[TimeControl "180+1"]
[Date "2021.11.30"]
[WhiteClock "0:00:19"]
[BlackClock "0:00:11"]

1. e4 {[%clk 0:03:00]}  c5 {[%clk 0:02:58]} 2. Nf3 {[%clk 0:03:01]}  d6 {[%clk 0:02:58]} 3. Bb5+ {[%clk 0:03:01]}  Bd7 {[%clk 0:02:56]} 4. c4 {[%clk 0:03:00]}  Nc6 {[%clk 0:02:53]} 5. O-O {[%clk 0:03:00]}  e5 {[%clk 0:02:51]} 6. Nc3 {[%clk 0:02:59]}  g6 {[%clk 0:02:48]} 7. d3 {[%clk 0:02:59]}  Bg7 {[%clk 0:02:47]} 8. Nd5 {[%clk 0:02:57]}  Nge7 {[%clk 0:02:46]} 9. Bg5 {[%clk 0:02:57]}  Qc8 {[%clk 0:02:00]} 10. Nf6+ {[%clk 0:02:40]}  Kf8 {[%clk 0:01:59]} 11. Nd5 {[%clk 0:02:25]}  h6 {[%clk 0:01:55]} 12. Bxc6 {[%clk 0:02:16]}  Nxc6 {[%clk 0:01:52]} 13. Bf6 {[%clk 0:02:14]}  Bxf6 {[%clk 0:01:50]} 14. Nxf6 {[%clk 0:02:14]}  Kg7 {[%clk 0:01:50]} 15. Nd5 {[%clk 0:02:13]}  Bg4 {[%clk 0:01:40]} 16. h3 {[%clk 0:02:13]}  Be6 {[%clk 0:01:38]} 17. Qd2 {[%clk 0:02:08]}  Rf8 {[%clk 0:01:27]} 18. Nh2 {[%clk 0:01:50]}  f5 {[%clk 0:01:27]} 19. f4 {[%clk 0:01:51]}  fxe4 {[%clk 0:01:21]} 20. dxe4 {[%clk 0:01:49]}  Nd4 {[%clk 0:01:22]} 21. Nf3 {[%clk 0:01:38]}  Bxd5 {[%clk 0:01:07]} 22. cxd5 {[%clk 0:01:37]}  Rxf4 {[%clk 0:01:06]} 23. Nxd4 {[%clk 0:01:37]}  Rxf1+ {[%clk 0:01:06]} 24. Rxf1 {[%clk 0:01:36]}  cxd4 {[%clk 0:01:04]} 25. Qf2 {[%clk 0:01:22]}  Qf8 {[%clk 0:01:01]} 26. Qh4 {[%clk 0:01:18]}  Qd8 {[%clk 0:01:00]} 27. Qg4 {[%clk 0:01:10]}  Qe7 {[%clk 0:00:56]} 28. h4 {[%clk 0:01:09]}  h5 {[%clk 0:00:56]} 29. Qh3 {[%clk 0:00:58]}  Rf8 {[%clk 0:00:48]} 30. Rxf8 {[%clk 0:00:57]}  Qxf8 {[%clk 0:00:49]} 31. Qd7+ {[%clk 0:00:56]}  Kh6 {[%clk 0:00:46]} 32. g4 {[%clk 0:00:49]}  hxg4 {[%clk 0:00:41]} 33. Qxg4 {[%clk 0:00:49]}  Qf6 {[%clk 0:00:26]} 34. Kg2 {[%clk 0:00:41]}  a5 {[%clk 0:00:25]} 35. a4 {[%clk 0:00:40]}  b6 {[%clk 0:00:25]} 36. Qc8 {[%clk 0:00:35]}  d3 {[%clk 0:00:18]} 37. Qc1+ {[%clk 0:00:34]}  Qf4 {[%clk 0:00:15]} 38. Qd1 {[%clk 0:00:31]}  Qxe4+ {[%clk 0:00:15]} 39. Kf2 {[%clk 0:00:30]}  Qd4+ {[%clk 0:00:14]} 40. Kg3 {[%clk 0:00:29]}  Qe3+ {[%clk 0:00:15]} 41. Kg2 {[%clk 0:00:24]}  d2 {[%clk 0:00:15]} 42. h5 {[%clk 0:00:22]}  e4 {[%clk 0:00:09]} 43. hxg6 {[%clk 0:00:21]}  Qg5+ {[%clk 0:00:10]} 44. Kf2 {[%clk 0:00:21]}  e3+ {[%clk 0:00:10]} 45. Ke2 {[%clk 0:00:19]}  Qg4+ {[%clk 0:00:10]} 46. Kxe3 {[%clk 0:00:19]}  Qxd1 {[%clk 0:00:11]} 0-1


[Site "https://www.chess.com"]

[Event "Titled Tuesday Blitz November 30 2021"]
[White "Gaehwiler, Gabriel"]
[Black "Saraci, Nderim"]
[WhiteFideId "1314530"]
[BlackFideId "6351921"]
[WhiteElo "2320"]
[BlackElo "2480"]
[Result "0-1"]
[Round "09"]
[TimeControl "180+1"]
[Date "2021.11.30"]
[WhiteClock "0:00:03"]
[BlackClock "0:00:02"]

1. d4 {[%clk 0:03:00]}  Nf6 {[%clk 0:02:59]} 2. c4 {[%clk 0:03:00]}  e6 {[%clk 0:03:00]} 3. g3 {[%clk 0:03:01]}  d5 {[%clk 0:02:58]} 4. Bg2 {[%clk 0:03:01]}  Be7 {[%clk 0:02:57]} 5. Nf3 {[%clk 0:03:00]}  O-O {[%clk 0:02:58]} 6. O-O {[%clk 0:03:00]}  c6 {[%clk 0:02:58]} 7. Qc2 {[%clk 0:02:57]}  b6 {[%clk 0:02:58]} 8. Rd1 {[%clk 0:02:57]}  Bb7 {[%clk 0:02:58]} 9. Nc3 {[%clk 0:02:57]}  Nbd7 {[%clk 0:02:58]} 10. e4 {[%clk 0:02:57]}  dxe4 {[%clk 0:02:58]} 11. Nxe4 {[%clk 0:02:57]}  Rc8 {[%clk 0:02:58]} 12. Nxf6+ {[%clk 0:02:56]}  Nxf6 {[%clk 0:02:58]} 13. Ne5 {[%clk 0:02:56]}  Ba8 {[%clk 0:02:55]} 14. c5 {[%clk 0:02:50]}  Nd7 {[%clk 0:02:54]} 15. Be3 {[%clk 0:02:43]}  Qc7 {[%clk 0:02:43]} 16. Rac1 {[%clk 0:02:35]}  Nxe5 {[%clk 0:02:18]} 17. dxe5 {[%clk 0:02:34]}  Qxe5 {[%clk 0:02:18]} 18. cxb6 {[%clk 0:02:34]}  axb6 {[%clk 0:02:17]} 19. Bxb6 {[%clk 0:02:27]}  c5 {[%clk 0:02:17]} 20. Bxa8 {[%clk 0:02:14]}  Rxa8 {[%clk 0:02:17]} 21. a4 {[%clk 0:01:59]}  Rfc8 {[%clk 0:02:08]} 22. b3 {[%clk 0:01:51]}  h6 {[%clk 0:02:08]} 23. a5 {[%clk 0:01:49]}  c4 {[%clk 0:01:55]} 24. bxc4 {[%clk 0:01:39]}  Bb4 {[%clk 0:01:55]} 25. Ra1 {[%clk 0:01:22]}  Bxa5 {[%clk 0:01:50]} 26. Bd4 {[%clk 0:01:15]}  Qc7 {[%clk 0:01:37]} 27. c5 {[%clk 0:01:13]}  Qc6 {[%clk 0:01:32]} 28. Qa4 {[%clk 0:01:12]}  Qxa4 {[%clk 0:01:14]} 29. Rxa4 {[%clk 0:01:13]}  Bd8 {[%clk 0:01:12]} 30. Rxa8 {[%clk 0:01:05]}  Rxa8 {[%clk 0:01:13]} 31. Be5 {[%clk 0:00:53]}  Rc8 {[%clk 0:01:13]} 32. Rd7 {[%clk 0:00:53]}  Ba5 {[%clk 0:01:02]} 33. Bd6 {[%clk 0:00:45]}  Bb4 {[%clk 0:01:02]} 34. c6 {[%clk 0:00:40]}  Bxd6 {[%clk 0:00:52]} 35. Rxd6 {[%clk 0:00:40]}  Kf8 {[%clk 0:00:53]} 36. h4 {[%clk 0:00:39]}  Ke7 {[%clk 0:00:52]} 37. Rd7+ {[%clk 0:00:39]}  Ke8 {[%clk 0:00:53]} 38. Rd6 {[%clk 0:00:38]}  Rc7 {[%clk 0:00:52]} 39. Kg2 {[%clk 0:00:34]}  Ke7 {[%clk 0:00:52]} 40. Rd2 {[%clk 0:00:34]}  Rxc6 {[%clk 0:00:53]} 41. Kf3 {[%clk 0:00:34]}  Rc5 {[%clk 0:00:51]} 42. Ra2 {[%clk 0:00:34]}  Kf6 {[%clk 0:00:50]} 43. Ra7 {[%clk 0:00:34]}  Rc3+ {[%clk 0:00:49]} 44. Ke2 {[%clk 0:00:34]}  g6 {[%clk 0:00:45]} 45. Rb7 {[%clk 0:00:32]}  e5 {[%clk 0:00:44]} 46. Ra7 {[%clk 0:00:31]}  h5 {[%clk 0:00:41]} 47. Rb7 {[%clk 0:00:31]}  Ke6 {[%clk 0:00:41]} 48. Ra7 {[%clk 0:00:30]}  f6 {[%clk 0:00:41]} 49. Kf1 {[%clk 0:00:27]}  Kf5 {[%clk 0:00:40]} 50. Kg2 {[%clk 0:00:27]}  Rc2 {[%clk 0:00:38]} 51. Ra4 {[%clk 0:00:24]}  g5 {[%clk 0:00:37]} 52. Rb4 {[%clk 0:00:19]}  Rd2 {[%clk 0:00:37]} 53. hxg5 {[%clk 0:00:18]}  fxg5 {[%clk 0:00:37]} 54. Ra4 {[%clk 0:00:18]}  Rd4 {[%clk 0:00:32]} 55. Ra8 {[%clk 0:00:17]}  h4 {[%clk 0:00:32]} 56. gxh4 {[%clk 0:00:17]}  gxh4 {[%clk 0:00:32]} 57. Rf8+ {[%clk 0:00:17]}  Ke4 {[%clk 0:00:32]} 58. Re8 {[%clk 0:00:16]}  Rc4 {[%clk 0:00:28]} 59. Kh3 {[%clk 0:00:16]}  Rc2 {[%clk 0:00:24]} 60. Rf8 {[%clk 0:00:10]}  Rc3+ {[%clk 0:00:24]} 61. Kg2 {[%clk 0:00:08]}  h3+ {[%clk 0:00:23]} 62. Kg1 {[%clk 0:00:07]}  Rf3 {[%clk 0:00:24]} 63. Re8 {[%clk 0:00:07]}  h2+ {[%clk 0:00:19]} 64. Kxh2 {[%clk 0:00:07]}  Rxf2+ {[%clk 0:00:20]} 65. Kg1 {[%clk 0:00:08]}  Rf5 {[%clk 0:00:19]} 66. Ra8 {[%clk 0:00:07]}  Rf3 {[%clk 0:00:17]} 67. Ra4+ {[%clk 0:00:07]}  Kf5 {[%clk 0:00:17]} 68. Kg2 {[%clk 0:00:07]}  e4 {[%clk 0:00:16]} 69. Ra1 {[%clk 0:00:07]}  Kf4 {[%clk 0:00:16]} 70. Ra8 {[%clk 0:00:07]}  Ke5 {[%clk 0:00:10]} 71. Ra5+ {[%clk 0:00:05]}  Ke6 {[%clk 0:00:10]} 72. Ra4 {[%clk 0:00:04]}  Rf4 {[%clk 0:00:07]} 73. Kg3 {[%clk 0:00:04]}  Rf3+ {[%clk 0:00:07]} 74. Kg2 {[%clk 0:00:04]}  Ke5 {[%clk 0:00:07]} 75. Ra5+ {[%clk 0:00:04]}  Kf4 {[%clk 0:00:08]} 76. Ra2 {[%clk 0:00:04]}  Rg3+ {[%clk 0:00:02]} 77. Kf2 {[%clk 0:00:05]}  e3+ {[%clk 0:00:02]} 78. Kf1 {[%clk 0:00:05]}  Kf3 {[%clk 0:00:03]} 79. Rf2+ {[%clk 0:00:04]}  Ke4 {[%clk 0:00:02]} 80. Ra2 {[%clk 0:00:05]}  Rh3 {[%clk 0:00:02]} 81. Ra4+ {[%clk 0:00:05]}  Kf3 {[%clk 0:00:02]} 82. Kg1 {[%clk 0:00:03]}  Rh5 {[%clk 0:00:02]} 0-1


[Site "https://www.chess.com"]

[Event "Titled Tuesday Blitz November 30 2021"]
[White "Golubev, Mikhail"]
[Black "Demchenko, Anton"]
[WhiteFideId "14100983"]
[BlackFideId "4160258"]
[WhiteElo "2374"]
[BlackElo "2583"]
[Result "0-1"]
[Round "09"]
[TimeControl "180+1"]
[Date "2021.11.30"]
[WhiteClock "0:00:04"]
[BlackClock "0:00:09"]

1. e4 {[%clk 0:03:00]}  e5 {[%clk 0:02:59]} 2. Nf3 {[%clk 0:03:00]}  Nc6 {[%clk 0:03:00]} 3. Bb5 {[%clk 0:03:00]}  a6 {[%clk 0:03:00]} 4. Ba4 {[%clk 0:03:00]}  d6 {[%clk 0:03:00]} 5. c3 {[%clk 0:02:53]}  Bd7 {[%clk 0:02:59]} 6. O-O {[%clk 0:02:45]}  g6 {[%clk 0:03:00]} 7. d4 {[%clk 0:02:45]}  Bg7 {[%clk 0:03:00]} 8. dxe5 {[%clk 0:02:41]}  dxe5 {[%clk 0:02:59]} 9. Bg5 {[%clk 0:02:24]}  Nge7 {[%clk 0:03:00]} 10. Nbd2 {[%clk 0:02:15]}  h6 {[%clk 0:03:00]} 11. Bxe7 {[%clk 0:02:02]}  Qxe7 {[%clk 0:02:54]} 12. Re1 {[%clk 0:01:59]}  O-O {[%clk 0:02:41]} 13. Nf1 {[%clk 0:01:56]}  b5 {[%clk 0:02:37]} 14. Bc2 {[%clk 0:01:55]}  Nd8 {[%clk 0:02:29]} 15. Ne3 {[%clk 0:01:48]}  c6 {[%clk 0:02:29]} 16. a4 {[%clk 0:01:48]}  Ne6 {[%clk 0:02:27]} 17. axb5 {[%clk 0:01:40]}  axb5 {[%clk 0:02:28]} 18. Rxa8 {[%clk 0:01:40]}  Rxa8 {[%clk 0:02:29]} 19. b4 {[%clk 0:01:39]}  Nf4 {[%clk 0:02:19]} 20. Bb3 {[%clk 0:01:33]}  Rd8 {[%clk 0:02:17]} 21. Qc2 {[%clk 0:01:28]}  Be6 {[%clk 0:02:09]} 22. Bxe6 {[%clk 0:01:21]}  Qxe6 {[%clk 0:02:10]} 23. g3 {[%clk 0:01:18]}  Nh3+ {[%clk 0:01:59]} 24. Kg2 {[%clk 0:01:16]}  Ra8 {[%clk 0:02:00]} 25. Re2 {[%clk 0:01:10]}  Nf4+ {[%clk 0:01:34]} 26. gxf4 {[%clk 0:01:05]}  exf4 {[%clk 0:01:35]} 27. Nf5 {[%clk 0:01:00]}  gxf5 {[%clk 0:01:36]} 28. exf5 {[%clk 0:00:58]}  Qd5 {[%clk 0:01:36]} 29. Rd2 {[%clk 0:00:34]}  Qc4 {[%clk 0:01:35]} 30. f6 {[%clk 0:00:31]}  Bxf6 {[%clk 0:01:34]} 31. Qf5 {[%clk 0:00:32]}  Bxc3 {[%clk 0:01:21]} 32. Rc2 {[%clk 0:00:29]}  Qxb4 {[%clk 0:00:47]} 33. Rxc3 {[%clk 0:00:15]}  Qxc3 {[%clk 0:00:46]} 34. Ne5 {[%clk 0:00:15]}  Qb3 {[%clk 0:00:24]} 35. Qg4+ {[%clk 0:00:14]}  Kf8 {[%clk 0:00:25]} 36. Qxf4 {[%clk 0:00:13]}  Qd5+ {[%clk 0:00:23]} 37. Kg3 {[%clk 0:00:12]}  Qe6 {[%clk 0:00:21]} 38. Ng4 {[%clk 0:00:10]}  Rd8 {[%clk 0:00:16]} 39. f3 {[%clk 0:00:08]}  Rd5 {[%clk 0:00:12]} 40. Nf6 {[%clk 0:00:05]}  Rg5+ {[%clk 0:00:11]} 41. Kh4 {[%clk 0:00:04]}  Kg7 {[%clk 0:00:09]} 0-1


[Site "https://www.chess.com"]

[Event "Titled Tuesday Blitz November 30 2021"]
[White "Golubka, Petro"]
[Black "Adewumi, Tanitoluwa"]
[WhiteFideId "14114224"]
[BlackFideId "30966396"]
[WhiteElo "2392"]
[BlackElo "2584"]
[Result "1-0"]
[Round "09"]
[TimeControl "180+1"]
[Date "2021.11.30"]
[WhiteClock "0:01:13"]
[BlackClock "0:00:05"]

1. e4 {[%clk 0:03:00]}  e5 {[%clk 0:02:48]} 2. Nf3 {[%clk 0:02:59]}  Nc6 {[%clk 0:02:48]} 3. Bb5 {[%clk 0:02:59]}  Nf6 {[%clk 0:02:47]} 4. O-O {[%clk 0:02:56]}  Nxe4 {[%clk 0:02:46]} 5. d4 {[%clk 0:02:57]}  Nd6 {[%clk 0:02:45]} 6. Bxc6 {[%clk 0:02:57]}  dxc6 {[%clk 0:02:45]} 7. dxe5 {[%clk 0:02:58]}  Nf5 {[%clk 0:02:46]} 8. Qxd8+ {[%clk 0:02:58]}  Kxd8 {[%clk 0:02:47]} 9. Nc3 {[%clk 0:02:58]}  Ke8 {[%clk 0:02:40]} 10. b3 {[%clk 0:02:58]}  a5 {[%clk 0:02:36]} 11. Bb2 {[%clk 0:02:59]}  Bb4 {[%clk 0:02:32]} 12. h3 {[%clk 0:02:58]}  Bxc3 {[%clk 0:02:29]} 13. Bxc3 {[%clk 0:02:59]}  c5 {[%clk 0:02:25]} 14. g4 {[%clk 0:02:56]}  Ne7 {[%clk 0:02:20]} 15. Kg2 {[%clk 0:02:56]}  h5 {[%clk 0:02:19]} 16. Kg3 {[%clk 0:02:56]}  Nd5 {[%clk 0:02:01]} 17. Bd2 {[%clk 0:02:54]}  f6 {[%clk 0:01:49]} 18. exf6 {[%clk 0:02:52]}  gxf6 {[%clk 0:01:49]} 19. c4 {[%clk 0:02:49]}  Ne7 {[%clk 0:01:48]} 20. Nh4 {[%clk 0:02:48]}  Kf7 {[%clk 0:01:37]} 21. Bf4 {[%clk 0:02:42]}  Be6 {[%clk 0:01:36]} 22. f3 {[%clk 0:02:37]}  Rh7 {[%clk 0:01:10]} 23. Bxc7 {[%clk 0:02:33]}  Rah8 {[%clk 0:01:04]} 24. Ng2 {[%clk 0:02:27]}  hxg4 {[%clk 0:00:59]} 25. hxg4 {[%clk 0:02:28]}  Rh3+ {[%clk 0:00:52]} 26. Kf2 {[%clk 0:02:27]}  Nc6 {[%clk 0:00:50]} 27. Bg3 {[%clk 0:02:16]}  Nd4 {[%clk 0:00:47]} 28. Nf4 {[%clk 0:02:15]}  R3h7 {[%clk 0:00:41]} 29. Rad1 {[%clk 0:02:09]}  b6 {[%clk 0:00:36]} 30. Rfe1 {[%clk 0:02:01]}  Bd7 {[%clk 0:00:30]} 31. Nd5 {[%clk 0:01:57]}  Bc6 {[%clk 0:00:27]} 32. Re7+ {[%clk 0:01:44]}  Kf8 {[%clk 0:00:15]} 33. Rxh7 {[%clk 0:01:41]}  Rxh7 {[%clk 0:00:16]} 34. Nxf6 {[%clk 0:01:41]}  Rf7 {[%clk 0:00:17]} 35. Bd6+ {[%clk 0:01:40]}  Kg7 {[%clk 0:00:17]} 36. Nh5+ {[%clk 0:01:38]}  Kg8 {[%clk 0:00:16]} 37. Nf4 {[%clk 0:01:37]}  Bxf3 {[%clk 0:00:13]} 38. Rxd4 {[%clk 0:01:25]}  cxd4 {[%clk 0:00:07]} 39. Kxf3 {[%clk 0:01:24]}  d3 {[%clk 0:00:05]} 40. Be5 {[%clk 0:01:16]}  d2 {[%clk 0:00:05]} 41. Ke2 {[%clk 0:01:15]}  Re7 {[%clk 0:00:05]} 42. Nd3 {[%clk 0:01:13]} 1-0


[Site "https://www.chess.com"]

[Event "Titled Tuesday Blitz November 30 2021"]
[White "Hjartarson, Johann"]
[Black "Bologan, Victor"]
[WhiteFideId "2300044"]
[BlackFideId "13900048"]
[WhiteElo "2502"]
[BlackElo "2472"]
[Result "0-1"]
[Round "09"]
[TimeControl "180+1"]
[Date "2021.11.30"]
[WhiteClock "0:01:03"]
[BlackClock "0:00:34"]

1. Nf3 {[%clk 0:03:00]}  Nf6 {[%clk 0:02:58]} 2. g3 {[%clk 0:03:00]}  e6 {[%clk 0:02:54]} 3. Bg2 {[%clk 0:03:00]}  Be7 {[%clk 0:02:54]} 4. O-O {[%clk 0:02:59]}  O-O {[%clk 0:02:53]} 5. c4 {[%clk 0:02:59]}  b6 {[%clk 0:02:53]} 6. b3 {[%clk 0:02:59]}  Bb7 {[%clk 0:02:52]} 7. Bb2 {[%clk 0:02:59]}  a5 {[%clk 0:02:52]} 8. Nc3 {[%clk 0:02:56]}  d5 {[%clk 0:02:51]} 9. cxd5 {[%clk 0:02:54]}  exd5 {[%clk 0:02:51]} 10. d4 {[%clk 0:02:54]}  Ne4 {[%clk 0:02:44]} 11. Qc2 {[%clk 0:02:52]}  Na6 {[%clk 0:02:41]} 12. Rac1 {[%clk 0:02:52]}  c5 {[%clk 0:02:26]} 13. Rfd1 {[%clk 0:02:49]}  Rc8 {[%clk 0:02:06]} 14. dxc5 {[%clk 0:02:48]}  Naxc5 {[%clk 0:02:05]} 15. Nxe4 {[%clk 0:02:42]}  Nxe4 {[%clk 0:02:04]} 16. Qd3 {[%clk 0:02:42]}  Bc5 {[%clk 0:01:51]} 17. e3 {[%clk 0:02:34]}  Qe7 {[%clk 0:01:48]} 18. Nd4 {[%clk 0:02:29]}  Qf6 {[%clk 0:01:44]} 19. Rc2 {[%clk 0:02:27]}  Qg6 {[%clk 0:01:38]} 20. Bh3 {[%clk 0:02:15]}  Rce8 {[%clk 0:01:25]} 21. Ne2 {[%clk 0:01:56]}  Nxf2 {[%clk 0:01:13]} 22. Kxf2 {[%clk 0:01:51]}  Bxe3+ {[%clk 0:01:11]} 23. Kf1 {[%clk 0:01:37]}  Qh6 {[%clk 0:01:05]} 24. Qf5 {[%clk 0:01:34]}  g6 {[%clk 0:00:57]} 25. Qg4 {[%clk 0:01:28]}  Re4 {[%clk 0:00:55]} 26. Qd7 {[%clk 0:01:25]}  Ba6 {[%clk 0:00:45]} 27. Rxd5 {[%clk 0:01:12]}  Re6 {[%clk 0:00:35]} 28. Bxe6 {[%clk 0:01:03]}  Qxh2 {[%clk 0:00:34]} 0-1


[Site "https://www.chess.com"]

[Event "Titled Tuesday Blitz November 30 2021"]
[White "Ianov, Viktor"]
[Black "Boyer, Mahel"]
[WhiteFideId "14102730"]
[BlackFideId "45102422"]
[WhiteElo "2307"]
[BlackElo "2328"]
[Result "1-0"]
[Round "09"]
[TimeControl "180+1"]
[Date "2021.11.30"]
[WhiteClock "0:01:07"]
[BlackClock "0:00:03"]

1. Nf3 {[%clk 0:03:00]}  g6 {[%clk 0:03:00]} 2. g3 {[%clk 0:03:00]}  Bg7 {[%clk 0:03:00]} 3. Bg2 {[%clk 0:03:00]}  d6 {[%clk 0:02:59]} 4. d4 {[%clk 0:03:00]}  Nf6 {[%clk 0:03:00]} 5. b3 {[%clk 0:02:59]}  O-O {[%clk 0:03:00]} 6. Bb2 {[%clk 0:02:59]}  a5 {[%clk 0:03:00]} 7. a3 {[%clk 0:02:57]}  b5 {[%clk 0:02:58]} 8. O-O {[%clk 0:02:56]}  Bb7 {[%clk 0:02:58]} 9. Nbd2 {[%clk 0:02:56]}  Nbd7 {[%clk 0:02:57]} 10. Re1 {[%clk 0:02:55]}  c5 {[%clk 0:02:53]} 11. e4 {[%clk 0:02:51]}  Qb6 {[%clk 0:02:36]} 12. e5 {[%clk 0:02:46]}  Nd5 {[%clk 0:01:33]} 13. c4 {[%clk 0:02:42]}  bxc4 {[%clk 0:01:32]} 14. Nxc4 {[%clk 0:02:41]}  Qc7 {[%clk 0:01:28]} 15. exd6 {[%clk 0:02:38]}  exd6 {[%clk 0:01:28]} 16. Rc1 {[%clk 0:02:36]}  Rfe8 {[%clk 0:01:23]} 17. Qd2 {[%clk 0:02:34]}  Rxe1+ {[%clk 0:01:01]} 18. Rxe1 {[%clk 0:02:32]}  cxd4 {[%clk 0:01:02]} 19. Bxd4 {[%clk 0:02:30]}  Nc5 {[%clk 0:01:02]} 20. Bxg7 {[%clk 0:02:27]}  Kxg7 {[%clk 0:01:03]} 21. Nd4 {[%clk 0:02:25]}  Nb6 {[%clk 0:00:49]} 22. Nxa5 {[%clk 0:02:17]}  Bxg2 {[%clk 0:00:46]} 23. Kxg2 {[%clk 0:02:17]}  Nd5 {[%clk 0:00:36]} 24. b4 {[%clk 0:02:13]}  Nf6 {[%clk 0:00:21]} 25. Nb5 {[%clk 0:02:06]}  Qb6 {[%clk 0:00:13]} 26. Nxd6 {[%clk 0:02:00]}  Ne6 {[%clk 0:00:04]} 27. Ndc4 {[%clk 0:01:53]}  Qb5 {[%clk 0:00:01]} 28. Qb2 {[%clk 0:01:50]}  Rd8 {[%clk 0:00:01]} 29. Re5 {[%clk 0:01:49]}  Qb8 {[%clk 0:00:01]} 30. Nc6 {[%clk 0:01:43]}  Qa8 {[%clk 0:00:02]} 31. Na5 {[%clk 0:01:43]}  Rc8 {[%clk 0:00:02]} 32. Qc3 {[%clk 0:01:38]}  Kg8 {[%clk 0:00:01]} 33. Rxe6 {[%clk 0:01:37]}  fxe6 {[%clk 0:00:02]} 34. Qxf6 {[%clk 0:01:34]}  Rxc6 {[%clk 0:00:02]} 35. Nxc6 {[%clk 0:01:34]}  Qxc6+ {[%clk 0:00:03]} 36. Qf3 {[%clk 0:01:34]}  Qc2 {[%clk 0:00:04]} 37. b5 {[%clk 0:01:33]}  Qb2 {[%clk 0:00:03]} 38. a4 {[%clk 0:01:32]}  Qb4 {[%clk 0:00:04]} 39. Qf4 {[%clk 0:01:29]}  Qb3 {[%clk 0:00:03]} 40. Qd4 {[%clk 0:01:28]}  h5 {[%clk 0:00:02]} 41. b6 {[%clk 0:01:28]}  e5 {[%clk 0:00:02]} 42. Qd8+ {[%clk 0:01:26]}  Kh7 {[%clk 0:00:03]} 43. Qc7+ {[%clk 0:01:24]}  Kh6 {[%clk 0:00:03]} 44. Qc1+ {[%clk 0:01:22]}  Kh7 {[%clk 0:00:03]} 45. Qe3 {[%clk 0:01:22]}  Qxa4 {[%clk 0:00:02]} 46. Qc5 {[%clk 0:01:12]}  Qb3 {[%clk 0:00:02]} 47. Qc7+ {[%clk 0:01:11]}  Kh6 {[%clk 0:00:02]} 48. b7 {[%clk 0:01:10]}  Qd5+ {[%clk 0:00:02]} 49. Kf1 {[%clk 0:01:09]}  Qd1+ {[%clk 0:00:02]} 50. Kg2 {[%clk 0:01:10]}  Qd5+ {[%clk 0:00:03]} 51. f3 {[%clk 0:01:10]}  Qa2+ {[%clk 0:00:03]} 52. Kh3 {[%clk 0:01:08]}  Qe6+ {[%clk 0:00:03]} 53. g4 {[%clk 0:01:07]}  hxg4+ {[%clk 0:00:03]} 54. fxg4 {[%clk 0:01:07]}  Qb3+ {[%clk 0:00:03]} 55. Kg2 {[%clk 0:01:07]}  Qb2+ {[%clk 0:00:04]} 56. Kf3 {[%clk 0:01:07]}  Qb3+ {[%clk 0:00:04]} 57. Ke2 {[%clk 0:01:07]}  Qb2+ {[%clk 0:00:03]} 58. Kd3 {[%clk 0:01:07]}  Qb3+ {[%clk 0:00:02]} 59. Kd2 {[%clk 0:01:07]}  Qb2+ {[%clk 0:00:02]} 60. Kd1 {[%clk 0:01:07]}  Qb1+ {[%clk 0:00:02]} 61. Qc1+ {[%clk 0:01:07]}  Qxc1+ {[%clk 0:00:01]} 62. Kxc1 {[%clk 0:01:07]}  Kg5 {[%clk 0:00:02]} 63. b8=Q {[%clk 0:01:07]}  Kxg4 {[%clk 0:00:02]} 64. Qxe5 {[%clk 0:01:07]}  Kh3 {[%clk 0:00:03]} 65. Qg3# {[%clk 0:01:07]} 1-0


[Site "https://www.chess.com"]